fUSD/lending_fUSD_20260109
["ID","MTS","AMOUNT","RATE_DAILY","PERIOD"]
[401142200,1767971444590,-500.0,0.00017973,2]
[401142201,1767971444600,-165.3256661,0.00017973,2]
[401142202,1767971444610,-500.0,0.00017973,2]
[401142203,1767971444619,-500.0,0.00017973,2]
[401142204,1767971444629,-500.0,0.00017973,2]
[401142205,1767971444640,-500.0,0.00017973,2]
[401142206,1767971444650,-546.15438132,0.00017973,2]
[401142207,1767971444660,-500.0,0.00017973,2]
[401142208,1767971444672,-500.0,0.00017973,2]
[401142209,1767971444683,-554.86072459,0.00017973,2]
[401142210,1767971444693,-500.0,0.00017973,2]
[401142211,1767971444703,-500.0,0.00017973,2]
[401142212,1767971444715,-500.0,0.00017973,2]
[401142213,1767971444726,-500.0,0.00017973,2]
[401142214,1767971444735,-208.06887662,0.00017973,2]
[401142215,1767971444745,-398.03125352,0.00017973,2]
[401142216,1767971444755,-500.0,0.00017982,2]
[401142217,1767971444766,-516.29838033,0.0001799,2]
[401142218,1767971444777,-516.29838033,0.0001799,2]
[401142219,1767971444787,-10000.0,0.00017997,2]
[401142220,1767971444797,-224537.2340305,0.00017997,2]
[401142221,1767971444807,-4087.1514939,0.00017997,2]
[401142222,1767971444817,-19805.8388573,0.00017997,2]
[401142223,1767971444827,-41163.3415965,0.00017997,2]
[401142224,1767971444837,-9657.2843923,0.00017997,2]
[401142225,1767971444847,-191.080193,0.00017997,2]
[401142226,1767971444856,-191.080193,0.00017997,2]
[401142227,1767971444866,-191.080193,0.00017997,2]
[401142228,1767971444876,-191.080193,0.00017997,2]
[401142229,1767971444886,-151.0,0.00017997,2]
[401142230,1767971444897,-151.0,0.00017997,2]
[401142231,1767971444907,-151.0,0.00017997,2]
[401142232,1767971444917,-5405.3546493,0.00017997,2]
[401142233,1767971444927,-297.140674,0.00017997,2]
[401142234,1767971444937,-151.0,0.00017997,2]
[401142235,1767971444946,-151.0,0.00017997,2]
[401142236,1767971444956,-151.0,0.00017997,2]
[401142237,1767971444968,-232.002122,0.00017997,2]
[401142238,1767971444979,-151.0,0.00017997,2]
[401142239,1767971444988,-240.670591,0.00017997,2]
[401142240,1767971444998,-151.0,0.00017997,2]
[401142241,1767971445008,-151.0,0.00017997,2]
[401142242,1767971445018,-151.0,0.00017997,2]
[401142243,1767971445028,-151.0,0.00017997,2]
[401142244,1767971445038,-151.0,0.00017997,2]
[401142245,1767971445048,-10000.0,0.00017998,2]
[401142247,1767971445291,-164.42033085,0.00017999,2]
[401142249,1767971445302,-10000.0,0.00017999,2]
[401142251,1767971445312,-1006.3197,0.00017999,2]
[401142252,1767971445322,-300.0,0.00017999,2]
[401142254,1767971445332,-1135.27137756,0.00017999,3]
[401142256,1767971445342,-300.0,0.00017999,2]
[401142258,1767971445351,-300.0,0.00017999,2]
[401142260,1767971445360,-300.0,0.00017999,2]
[401142261,1767971445371,-666.0,0.00017999,2]
[401142262,1767971445380,-150.0,0.00017999,2]
[401142263,1767971445390,-300.0,0.00017999,2]
[401142264,1767971445399,-666.0,0.00017999,2]
[401142265,1767971445408,-359.08313245,0.00017999,2]
[401142266,1767971445418,-1268235.64127487,0.00018,2]
[401142267,1767971447772,-704.40207355,0.00016452,2]
[401142268,1767971447856,-1373.61932677,0.00016452,2]
[401142269,1767971447868,-1068.475,0.00016452,2]
[401142270,1767971447879,-841.78985,0.00016452,2]
[401142271,1767971447891,-2099.213705,0.00016452,2]
[401142272,1767971448010,-465.50004468,0.00016452,2]
[401142273,1767971448020,-233959.54200525,0.00018,2]
[401142274,1767971448031,-908.22440825,0.00018,2]
[401142275,1767971448047,-1322.500002,0.00018,2]
[401142276,1767971448058,-6756.48853091,0.00018,2]
[401142277,1767971448070,-14570.17176503,0.00018,2]
[401142278,1767971448091,-151.0,0.00015434,2]
[401142279,1767971448101,-8848.99946582,0.00018,2]
[401142280,1767971448112,-1273.88604002,0.00018,2]
[401142281,1767971448199,-74373.77808763,0.00018,2]
[401142282,1767971448211,-2287.5,0.00018,2]
[401142283,1767971448223,-1358.60816525,0.00018,2]
[401142425,1767972633747,-763.574,0.00013519,2]
[401142427,1767972633757,-236.426,0.00013519,2]
[401142429,1767972633769,-24.574,0.00013519,2]
[401142431,1767972633779,-183.90001058,0.00013692,2]
[401142433,1767972633789,-490.06078276,0.00013692,2]
[401142435,1767972633801,-709.93921724,0.00013692,2]
[401142437,1767972633811,-105.36662358,0.00013692,2]
[401142442,1767972634047,-194.63337642,0.00013692,2]
[401142443,1767972634058,-1530.42662347,0.00013693,2]
[401142445,1767972634070,-52980.81097849,0.00013693,2]
[401142446,1767972634081,-5402.34681654,0.00013693,2]
[401142449,1767972634092,-255.00000005,0.00013693,2]
[401142454,1767972638452,-2911.13733218,0.00013594,2]
[401142455,1767972638463,-500.0,0.00013692,2]
[401142456,1767972638473,-500.0,0.00013692,2]
[401142457,1767972638483,-500.0,0.00013692,2]
[401142458,1767972638493,-304.26489927,0.00013692,2]
[401142459,1767972638506,-13584.59776857,0.00013693,2]
[401142460,1767972638715,-463.01244513,0.00013693,2]
[401142461,1767972638727,-252.7912557,0.00013693,2]
[401142468,1767972638808,-2300.49908547,0.00013693,2]
[401142644,1767972640563,-919.20311721,0.00013693,2]
[401142646,1767972640574,-388.98061938,0.00013693,2]
[401142662,1767972640715,-921922.33128999,0.00013693,2]
[401142664,1767972640725,-165.76188916,0.00013694,2]
[401142666,1767972640734,-156.16974363,0.00013696,2]
[401142668,1767972640743,-500.0,0.00013699,2]
[401142670,1767972640752,-500.0,0.00013699,2]
[401142672,1767972640762,-500.0,0.00013699,2]
[401142674,1767972640772,-500.0,0.00013699,2]
[401142676,1767972640781,-550.0,0.00013699,2]
[401142678,1767972640791,-500.0,0.00013699,2]
[401142680,1767972640800,-500.0,0.00013699,2]
[401142682,1767972640810,-500.0,0.00013699,2]
[401142684,1767972640820,-1000.0,0.00013796,2]
[401142686,1767972640830,-500.0,0.00013895,2]
[401142688,1767972640840,-500.0,0.00013895,2]
[401142690,1767972640850,-500.0,0.00013895,2]
[401142692,1767972640859,-500.0,0.00013895,2]
[401142694,1767972640869,-166.66,0.000142,2]
[401142696,1767972640878,-156.16974363,0.00014397,2]
[401142698,1767972640888,-156.16974363,0.00014397,2]
[401142700,1767972640897,-166.66,0.00014498,2]
[401142702,1767972640907,-1001.76,0.00014746,2]
[401142704,1767972640916,-166.66,0.00014797,2]
[401142706,1767972640925,-3541.07,0.00014817,2]
[401142708,1767972640935,-189.50825211,0.00014871,2]
[401142711,1767972640945,-600.0,0.00014871,2]
[401142712,1767972640957,-600.0,0.00014871,2]
[401142715,1767972640967,-600.0,0.00014871,2]
[401142717,1767972640976,-600.0,0.00014871,2]
[401142719,1767972640985,-600.0,0.00014871,2]
[401142721,1767972640994,-163.89,0.00014871,2]
[401142723,1767972641004,-200.0,0.00014876,2]
[401142724,1767972641013,-10137.16077049,0.00015,2]
[401142727,1767972641023,-22970.4509711,0.00015,2]
[401142728,1767972641031,-420.0,0.00015005,2]
[401142730,1767972641041,-1680.0,0.00015061,2]
[401142733,1767972641051,-166.66,0.00015096,2]
[401142735,1767972641060,-156.16974363,0.00015097,2]
[401142737,1767972641070,-156.16974363,0.00015097,2]
[401142739,1767972641080,-200.0,0.00015123,2]
[401142740,1767972641089,-166.66,0.00015395,2]
[401142742,1767972641098,-151.0,0.00015544,2]
[401142744,1767972641107,-151.0,0.00015544,2]
[401142746,1767972641117,-166.66,0.00015694,2]
[401142748,1767972641127,-163.89,0.00015698,2]
[401142750,1767972641136,-24219.57833393,0.00015778,2]
[401142752,1767972641145,-156.16974363,0.00015798,2]
[401142754,1767972641154,-165.88,0.00015875,2]
[401142756,1767972641163,-1000.0,0.00015918,2]
[401142758,1767972641173,-70116.01065003,0.00016,2]
[401142760,1767972641182,-463.78,0.00016187,2]
[401142762,1767972641191,-5000.00546761,0.000162,5]
[401142764,1767972641200,-500.0,0.00016438,2]
[401142766,1767972641211,-500.0,0.00016438,2]
[401142768,1767972641220,-500.0,0.00016438,2]
[401142770,1767972641231,-500.0,0.00016438,2]
[401142772,1767972641240,-500.0,0.00016438,2]
[401142774,1767972641250,-300.01906018,0.00016438,2]
[401142776,1767972641259,-500.0,0.00016438,2]
[401142778,1767972641269,-500.0,0.00016438,2]
[401142780,1767972641278,-500.0,0.00016438,2]
[401142782,1767972641287,-13703.83,0.00016438,2]
[401142784,1767972641297,-587.0,0.00016444,2]
[401142786,1767972641306,-1000.0,0.00016515,2]
[401142788,1767972641316,-163.89,0.00016524,2]
[401142790,1767972641325,-2351.0,0.00016567,2]
[401142792,1767972641333,-500.0,0.00016772,3]
[401142794,1767972641343,-1266.0,0.0001689,2]
[401142796,1767972641352,-505.0,0.0001689,2]
[401142798,1767972641361,-914.0,0.0001689,2]
[401142800,1767972641371,-1201.0,0.0001689,2]
[401142802,1767972641381,-2436.0,0.0001689,2]
[401142804,1767972641390,-1330.0,0.0001689,2]
[401142806,1767972641399,-1405.0,0.0001689,2]
[401142808,1767972641408,-466.84,0.00016905,2]
[401142810,1767972641417,-187.53,0.00016918,2]
[401142812,1767972641426,-285.36089827,0.00016978,2]
[401142814,1767972641435,-269.83,0.00016985,2]
[401142816,1767972641445,-150.0,0.00016985,2]
[401142818,1767972641457,-161392.96836267,0.00016986,2]
[401142859,1767972641974,-460.35808318,0.00016986,2]
[401142861,1767972641986,-2661.7428,0.00016986,2]
[401143312,1767972646608,-2911.13733212,0.00014072,2]
[401143314,1767972646618,-614.0,0.0001689,2]
[401143315,1767972646628,-20474.862648,0.00016986,2]
[401143318,1767972646639,-11999.07050161,0.00016986,2]
[401143323,1767972646695,-419.06083833,0.00016986,2]
[401143324,1767972646707,-325.0,0.00016986,2]
[401143325,1767972646722,-14190.05766788,0.00016986,2]
[401143326,1767972646781,-1104.89183922,0.00016986,2]
[401143327,1767972646793,-1444.61513517,0.00016986,2]
[401143329,1767972646805,-6195.83953925,0.00016986,2]
[401143339,1767972648434,-1040.84881507,0.00014551,2]
[401143340,1767972648481,-30.08049191,0.00014551,2]
[401143341,1767972648493,-1840.20802514,0.00014551,2]
[401143342,1767972648504,-390859.26258469,0.00016986,2]
[401143343,1767972648514,-250.0,0.00017,2]
[401143344,1767972648528,-55641.97958181,0.0001704,2]
[401143345,1767972648537,-90513.23422505,0.0001704,2]
[401143346,1767972648548,-127831.70082881,0.0001704,2]
[401143347,1767972648557,-165411.5265,0.0001704,2]
[401143349,1767972648566,-150.0,0.00017078,2]
[401143350,1767972648575,-553.64373807,0.00017099,2]
[401143351,1767972648585,-322.6107,0.00017099,2]
[401143352,1767972648596,-1000.0,0.00017112,2]
[401143353,1767972648606,-285.36089824,0.00017162,2]
[401143354,1767972648615,-150.0,0.00017178,2]
[401143355,1767972648625,-150.0,0.00017178,2]
[401143356,1767972648634,-150.0,0.00017178,2]
[401143357,1767972648644,-150.0,0.00017178,2]
[401143358,1767972648654,-150.0,0.00017178,2]
[401143359,1767972648663,-159.10718443,0.00017189,2]
[401143360,1767972648673,-1000.0,0.000172,2]
[401143361,1767972648683,-500.0,0.00017275,2]
[401143362,1767972648692,-500.0,0.00017275,2]
[401143363,1767972648702,-500.0,0.00017275,2]
[401143364,1767972648945,-500.0,0.00017275,2]
[401143365,1767972649049,-500.0,0.00017275,2]
[401143366,1767972649059,-285.36089824,0.00017347,2]
[401143367,1767972649070,-163.89,0.0001735,2]
[401143368,1767972649080,-285.36089824,0.00017531,2]
[401143369,1767972649090,-1000.0,0.000176,2]
[401143370,1767972649101,-1463.95361023,0.0001764,2]
[401143371,1767972649110,-574.12855637,0.00017647,2]
[401143372,1767972649120,-2493.79008289,0.00017673,2]
[401143373,1767972649131,-1000.0,0.00017709,2]
[401143374,1767972649141,-285.36089824,0.00017716,2]
[401143375,1767972649151,-2000.0,0.000178,2]
[401143376,1767972649160,-168.0,0.00017811,2]
[401143377,1767972649169,-2000.0,0.00017856,2]
[401143378,1767972649179,-503.20312707,0.00017899,2]
[401143379,1767972649190,-10000.0,0.000179,2]
[401143380,1767972649201,-285.36089824,0.000179,2]
[401143381,1767972649211,-2119.0,0.000179,2]
[401143382,1767972649223,-500.0,0.00017973,2]
[401143383,1767972649234,-500.0,0.00017973,2]
[401143384,1767972649244,-500.0,0.00017973,2]
[401143385,1767972649254,-500.0,0.00017973,2]
[401143386,1767972649264,-500.0,0.00017973,2]
[401143387,1767972649274,-500.0,0.00017973,2]
[401143388,1767972649284,-500.0,0.00017973,2]
[401143389,1767972649294,-150.18655509,0.00017973,2]
[401143390,1767972649304,-500.0,0.00017973,2]
[401143391,1767972649315,-500.0,0.00017973,2]
[401143392,1767972649324,-500.0,0.00017973,2]
[401143393,1767972649334,-500.0,0.00017973,2]
[401143394,1767972649344,-500.0,0.00017973,2]
[401143395,1767972649354,-190.88377587,0.00017973,2]
[401143396,1767972649363,-260.76514571,0.00017973,2]
[401143397,1767972649373,-500.0,0.00017973,2]
[401143398,1767972649383,-433.25363423,0.00017973,2]
[401143399,1767972649394,-500.0,0.00017973,2]
[401143400,1767972649404,-500.0,0.00017973,2]
[401143401,1767972649413,-500.0,0.00017973,2]
[401143402,1767972649423,-500.0,0.00017973,2]
[401143403,1767972649432,-500.0,0.00017973,2]
[401143404,1767972649442,-500.0,0.00017973,2]
[401143405,1767972649452,-500.94146496,0.00017973,2]
[401143406,1767972649461,-500.0,0.00017973,2]
[401143407,1767972649473,-500.0,0.00017973,2]
[401143408,1767972649483,-500.0,0.00017973,2]
[401143409,1767972649493,-500.0,0.00017973,2]
[401143410,1767972649502,-500.0,0.00017973,2]
[401143411,1767972649516,-500.0,0.00017973,2]
[401143412,1767972649526,-500.0,0.00017973,2]
[401143413,1767972649535,-500.0,0.00017973,2]
[401143414,1767972649545,-500.0,0.00017973,2]
[401143415,1767972649556,-500.0,0.00017973,2]
[401143416,1767972649566,-571.18523256,0.00017973,2]
[401143418,1767972649575,-500.0,0.00017973,2]
[401143420,1767972649587,-500.0,0.00017973,2]
[401143421,1767972649596,-500.0,0.00017973,2]
[401143422,1767972649606,-500.0,0.00017973,2]
[401143423,1767972649616,-500.0,0.00017973,2]
[401143424,1767972649625,-500.0,0.00017973,2]
[401143425,1767972649634,-500.0,0.00017973,2]
[401143426,1767972649644,-500.0,0.00017973,2]
[401143427,1767972649653,-500.0,0.00017973,2]
[401143428,1767972649663,-500.0,0.00017973,2]
[401143429,1767972649672,-587.72916305,0.00017973,2]
[401143430,1767972649681,-500.0,0.00017973,2]
[401143431,1767972649690,-500.0,0.00017973,2]
[401143432,1767972649699,-150.0,0.00017973,2]
[401143433,1767972649708,-150.0,0.00017973,2]
[401143434,1767972649724,-233.0,0.00017989,2]
[401143435,1767972649733,-10459.4536215,0.00017994,2]
[401143436,1767972649743,-49017.7462216,0.00017994,2]
[401143437,1767972649752,-261.83932266,0.00017999,2]
[401143438,1767972649762,-300.0,0.00017999,2]
[401143439,1767972649772,-300.0,0.00017999,2]
[401143440,1767972649782,-666.0,0.00017999,2]
[401143441,1767972649792,-300.0,0.00017999,2]
[401143442,1767972649801,-666.0,0.00017999,2]
[401143443,1767972649810,-300.0,0.00017999,2]
[401143444,1767972649820,-300.0,0.00017999,2]
[401143445,1767972649829,-500.0,0.00017999,2]
[401143446,1767972649838,-500.0,0.00017999,2]
[401143447,1767972649847,-500.0,0.00017999,2]
[401143448,1767972649856,-500.0,0.00017999,2]
[401143449,1767972649866,-500.0,0.00017999,2]
[401143450,1767972649875,-500.0,0.00017999,2]
[401143451,1767972649884,-500.0,0.00017999,2]
[401143452,1767972649894,-500.0,0.00017999,2]
[401143453,1767972649904,-500.0,0.00017999,2]
[401143454,1767972649914,-500.0,0.00017999,2]
[401143455,1767972649923,-11541.22312061,0.00017999,2]
[401143456,1767972649933,-500.0,0.00017999,2]
[401143457,1767972649942,-500.0,0.00017999,2]
[401143458,1767972649952,-500.0,0.00017999,2]
[401143459,1767972649966,-500.0,0.00017999,2]
[401143460,1767972649976,-500.0,0.00017999,2]
[401143461,1767972649986,-500.0,0.00017999,2]
[401143462,1767972649996,-500.0,0.00017999,2]
[401143463,1767972650006,-500.0,0.00017999,2]
[401143464,1767972650015,-500.0,0.00017999,2]
[401143465,1767972650024,-500.0,0.00017999,2]
[401143466,1767972650035,-500.0,0.00017999,2]
[401143467,1767972650045,-203.70228815,0.00017999,2]
[401143468,1767972650054,-7824.46415432,0.00017999,2]
[401143469,1767972650064,-359.08313245,0.00017999,2]
[401143470,1767972650073,-666.0,0.00017999,2]
[401143471,1767972650083,-150.0,0.00017999,2]
[401143472,1767972650092,-58.91189129,0.00018,2]
[401143473,1767972650106,-20197.44599783,0.00018,2]
[401143474,1767972650248,-80471.71973046,0.00018,2]
[401143475,1767972921012,1177.58596832,0.0001369,3]
[401143485,1767973831798,-3189.89,0.00013125,2]
[401143486,1767973831811,-2445.42555532,0.00013403,2]
[401143487,1767973831820,-185.62708353,0.00013417,2]
[401143488,1767973831829,-1054.521,0.00013417,2]
[401143489,1767973831838,-190.56748313,0.00013489,2]
[401143490,1767973831848,-286.0,0.00013489,2]
[401143491,1767973831857,-1200.0,0.00013489,2]
[401143492,1767973831866,-300.0,0.00013489,2]
[401143493,1767973831877,-73424.72602762,0.0001349,2]
[401143494,1767973831888,-18498.36200261,0.0001349,2]
[401143499,1767973831937,-4562.99,0.0001349,2]
[401143502,1767973831955,-4279.61872,0.0001349,2]
[401143503,1767973831969,-2337.30924,0.0001349,2]
[401143505,1767973832022,-14904.64660773,0.0001349,2]
[401143670,1767973839698,-157.53718294,0.00013489,2]
[401143672,1767973839708,-500.0,0.00013489,2]
[401143674,1767973839722,-296.01080383,0.00013489,2]
[401143676,1767973839732,-192.23943256,0.00013489,2]
[401143678,1767973839741,-500.0,0.00013489,2]
[401143680,1767973839751,-500.0,0.00013489,2]
[401143682,1767973839762,-545.5397681,0.00013489,2]
[401143684,1767973839771,-500.0,0.00013489,2]
[401143686,1767973839781,-500.0,0.00013489,2]
[401143688,1767973839790,-500.0,0.00013489,2]
[401143690,1767973839801,-500.0,0.00013489,2]
[401143692,1767973839813,-500.0,0.00013489,2]
[401143694,1767973839823,-500.0,0.00013489,2]
[401143696,1767973839832,-500.0,0.00013489,2]
[401143698,1767973839843,-500.0,0.00013489,2]
[401143700,1767973839853,-500.0,0.00013489,2]
[401143702,1767973839862,-500.0,0.00013489,2]
[401143704,1767973839872,-164.34521019,0.00013489,2]
[401143707,1767973839884,-335.65478981,0.00013489,2]
[401143709,1767973839894,-500.0,0.00013489,2]
[401143711,1767973839903,-500.0,0.00013489,2]
[401143713,1767973839912,-500.0,0.00013489,2]
[401143715,1767973839922,-500.0,0.00013489,2]
[401143717,1767973839935,-500.0,0.00013489,2]
[401143719,1767973839944,-7202.67540432,0.0001349,2]
[401143721,1767973839956,-677.84802425,0.0001349,2]
[401143723,1767973839968,-20978.18321226,0.0001349,2]
[401143738,1767973840095,-13920.0,0.0001349,2]
[401143743,1767973840134,-3676.7476488,0.0001349,2]
[401143745,1767973840146,-502.700987,0.0001349,2]
[401143816,1767973840822,-54028.0891208,0.0001349,2]
[401143819,1767973840838,-591.49174852,0.0001349,2]
[401143820,1767973840850,-284.98540016,0.0001349,2]
[401143821,1767973840862,-283.72701841,0.0001349,2]
[401143822,1767973840873,-445.3439525,0.0001349,2]
[401143823,1767973840950,-3738.47688279,0.0001349,2]
[401143824,1767973840961,-453.16650001,0.0001349,2]
[401144266,1767973845865,-935.57953024,0.0001349,2]
[401144267,1767973845879,-1303.54678559,0.0001349,2]
[401144268,1767973845932,-21568.73268217,0.0001349,2]
[401144269,1767973845943,-751401.05250422,0.0001349,2]
[401144270,1767973845954,-195.0,0.00013503,2]
[401144271,1767973845964,-195.0,0.00013557,2]
[401144272,1767973845974,-185.62708353,0.00013589,2]
[401144273,1767973845983,-60708.50990052,0.0001359,2]
[401144274,1767973845992,-214.43976738,0.00013591,2]
[401144276,1767973846001,-6348.05461522,0.00013591,2]
[401144277,1767973846011,-192.78862054,0.00013595,2]
[401144278,1767973846021,-2003.20020128,0.000136,2]
[401144279,1767973846030,-166.66,0.00013612,2]
[401144280,1767973846040,-965.27,0.0001369,2]
[401144282,1767973846050,-193.3796,0.00013695,2]
[401144283,1767973846059,-500.0,0.00013698,2]
[401144284,1767973846068,-499.04549515,0.00013698,2]
[401144285,1767973846078,-500.0,0.00013699,2]
[401144286,1767973846087,-500.0,0.00013699,2]
[401144287,1767973846096,-500.0,0.00013699,2]
[401144288,1767973846107,-500.0,0.00013699,2]
[401144289,1767973846116,-500.0,0.00013699,2]
[401144290,1767973846125,-500.0,0.00013699,2]
[401144291,1767973846134,-500.0,0.00013699,2]
[401144292,1767973846144,-500.0,0.00013699,2]
[401144293,1767973846154,-500.0,0.00013699,2]
[401144294,1767973846163,-500.0,0.00013699,2]
[401144295,1767973846173,-500.0,0.00013699,2]
[401144296,1767973846183,-500.0,0.00013699,2]
[401144297,1767973846192,-500.0,0.00013699,2]
[401144298,1767973846201,-174.10005784,0.00013699,2]
[401144299,1767973846210,-500.0,0.00013699,2]
[401144301,1767973846220,-500.0,0.00013699,2]
[401144302,1767973846229,-500.0,0.00013699,2]
[401144303,1767973846238,-500.0,0.00013699,2]
[401144304,1767973846247,-500.0,0.00013699,2]
[401144305,1767973846256,-500.0,0.00013699,2]
[401144306,1767973846266,-500.0,0.00013699,2]
[401144307,1767973846276,-1852.42,0.00013766,2]
[401144309,1767973846285,-228.09413106,0.00013794,2]
[401144310,1767973846295,-500.0,0.00013794,2]
[401144311,1767973846304,-500.0,0.00013794,2]
[401144312,1767973846313,-500.0,0.00013794,2]
[401144313,1767973846322,-500.0,0.00013794,2]
[401144314,1767973846331,-2445.42555527,0.00013903,2]
[401144316,1767973846341,-166.66,0.00014062,2]
[401144317,1767973846350,-6348.05461518,0.0001407,2]
[401144318,1767973846360,-214.43976733,0.00014309,2]
[401144319,1767973846369,-2445.42555527,0.00014402,2]
[401144320,1767973846378,-166.66,0.00014511,2]
[401144321,1767973846388,-6348.05461518,0.00014549,2]
[401144322,1767973846398,-600.0,0.00014759,2]
[401144323,1767973846408,-600.0,0.00014759,2]
[401144324,1767973846417,-600.0,0.00014759,2]
[401144325,1767973846427,-600.0,0.00014759,2]
[401144326,1767973846437,-189.50825211,0.00014759,2]
[401144327,1767973846446,-195.0,0.00014759,2]
[401144328,1767973846456,-250.0,0.00014759,2]
[401144329,1767973846466,-2500.0,0.00014759,2]
[401144330,1767973846476,-600.0,0.00014759,2]
[401144331,1767973846486,-500.0,0.00014763,2]
[401144332,1767973846496,-500.0,0.00014763,2]
[401144333,1767973846506,-420.0,0.00014786,2]
[401144334,1767973846516,-1816.79771886,0.00014786,2]
[401144335,1767973846525,-1680.0,0.00014838,2]
[401144336,1767973846535,-516.29838033,0.00014873,2]
[401144337,1767973846545,-139471.53091409,0.00014883,2]
[401144338,1767973846554,-226879.40724309,0.00014883,2]
[401144339,1767973846563,-320421.43625987,0.00014883,2]
[401144340,1767973846573,-414618.5835,0.00014883,2]
[401144341,1767973846582,-151.75,0.00014887,2]
[401144342,1767973846592,-151.0,0.00014887,2]
[401144343,1767973846602,-151.0,0.00014887,2]
[401144344,1767973846612,-151.0,0.00014887,2]
[401144345,1767973846621,-151.0,0.00014887,2]
[401144346,1767973846631,-151.0,0.00014901,2]
[401144347,1767973846640,-151.0,0.00014901,2]
[401144348,1767973846649,-2445.42555527,0.00014902,2]
[401144349,1767973846659,-166.66,0.0001496,2]
[401144350,1767973846670,-214.43976733,0.00015027,2]
[401144351,1767973846679,-6348.05461518,0.00015027,2]
[401144352,1767973846688,-151.0,0.00015166,2]
[401144353,1767973846697,-500.0,0.00015233,2]
[401144354,1767973846707,-999.0,0.00015366,3]
[401144355,1767973846717,-2445.42555527,0.00015402,2]
[401144356,1767973846726,-1816.79771883,0.00015409,2]
[401144357,1767973846735,-888.46,0.00015409,2]
[401144358,1767973846744,-166.66,0.0001541,2]
[401144359,1767973846754,-6348.05461518,0.00015506,2]
[401144360,1767973846763,-165.88,0.00015623,2]
[401144361,1767973846773,-214.43976733,0.00015746,2]
[401144362,1767973846782,-3240.0,0.00015778,2]
[401144363,1767973846792,-150.0,0.00015798,2]
[401144364,1767973846801,-154.01,0.00015799,2]
[401144365,1767973846814,-166.66,0.00015859,2]
[401144366,1767973846823,-318.9635124,0.000159,2]
[401144367,1767973846832,-318.9635124,0.000159,2]
[401144368,1767973846842,-318.9635124,0.000159,2]
[401144369,1767973846852,-318.9635124,0.000159,2]
[401144370,1767973846861,-318.9635124,0.000159,2]
[401144371,1767973846871,-318.9635124,0.000159,2]
[401144372,1767973846883,-2445.42555527,0.00015901,2]
[401144373,1767973846892,-6348.05461518,0.00015985,2]
[401144374,1767973846902,-1816.79771883,0.00016032,2]
[401144375,1767973846911,-587.0,0.00016207,2]
[401144376,1767973846920,-500.0,0.00016219,2]
[401144377,1767973846930,-2351.0,0.00016322,2]
[401144378,1767973846939,-1124.58,0.00016325,2]
[401144379,1767973846949,-500.0,0.00016329,2]
[401144380,1767973846958,-2445.42555527,0.00016401,2]
[401144381,1767973846967,-214.43976733,0.00016464,2]
[401144382,1767973846977,-6348.05461518,0.00016464,2]
[401144383,1767973846987,-1816.79771883,0.00016654,2]
[401144384,1767973846997,-1000.0,0.0001669,2]
[401144385,1767973847007,-2445.42555527,0.00016901,2]
[401144386,1767973847017,-6348.05461518,0.00016942,2]
[401144387,1767973847026,-500.0,0.00016959,2]
[401144388,1767973847035,-700.71,0.00017,2]
[401144389,1767973847044,-700.71,0.00017,2]
[401144390,1767973847054,-700.71,0.00017,2]
[401144391,1767973847064,-700.71,0.00017,2]
[401144392,1767973847074,-700.71,0.00017,2]
[401144393,1767973847083,-301.22005316,0.00017,7]
[401144394,1767973847093,-500.0,0.00017041,2]